Cogmind - Beta 10.2 @@@ ROGUE MODE // 2021.12.21 @ 20:47:35 Player: Ayera Result: Destroyed by G-47 Trooper with Particle Gun Performance ------------- Evolutions (2) 1000 Regions Visited (6) 1200 Robots Destroyed (103) 515 Value Destroyed (2467) 2467 Prototype IDs (7) 140 Alien Tech Used (0) 0 Bonus (806) 806 TOTAL SCORE: 6128 Bonus ------- High Alert Combat Kills 106 Entered Garrisons 200 Used RIF Installer 500 Cogmind --------- Core Integrity 0/550 Matter 248/300 Energy 96/100 System Corruption 9% Temperature Cool (9) Movement Walking (120) Location -8/Materials Parts ------- > --- POWER (1) -------- (None) > --- PROPULSION (3) --- Improved Carbon-fiber Leg Improved Carbon-fiber Leg > --- UTILITY (5) ------ Improved Medium Armor Plating Hacking Suite > --- WEAPON (2) ------- Mining Claw > --- INVENTORY (4) ---- Aluminum Leg Particle Gun Light Assault Rifle Datajack Peak State ------------ > --- POWER ------------ Light Ion Engine > --- PROPULSION ------- Improved Carbon-fiber Leg Improved Carbon-fiber Leg Improved Carbon-fiber Leg > --- UTILITY ---------- Advanced Weight Redist. System Improved Medium Armor Plating Improved Medium Armor Plating Hacking Suite Hacking Suite > --- WEAPON ----------- Light Assault Rifle Datajack > --- INVENTORY -------- (None) [Rating: 32] Favorites ----------- Power Light Nuclear Core Engine Light Ion Engine Power Core Light Nuclear Core Propulsion Improved Treads Treads Improved Treads Leg Improved Carbon-fiber Leg Wheel Compact Wheel Flight Unit Flight Unit Utility Targeting Computer Device Advanced Weight Redist. System Storage High-capacity Storage Unit Processor Targeting Computer Hackware Hacking Suite Protection Light Armor Plating Weapon Heavy Assault Rifle Energy Gun Improved EM Shotgun Ballistic Gun Heavy Assault Rifle Ballistic Cannon Improved Light Cannon Launcher Grenade Launcher Slashing Weapon Mining Claw Special Melee Weapon Datajack Build | -11 -10 -10 -9 -8 -8 -8 ------- Run | Scr Mat Min Mat Mat Gar Mat Slots Evolved 4 | . . . 2 2 . . Power . | . . . . . . . Propulsion 1 | . . . 1 . . . Utility 3 | . . . 1 2 . . Weapon . | . . . . . . . Parts Attached 95 | 6 9 1 27 14 18 20 Power 13 | 1 2 . 3 2 3 2 Engine 9 | 1 2 . 1 1 2 2 Core 4 | . . . 2 1 1 . Reactor . | . . . . . . . Propulsion 27 | 2 1 . 9 3 6 6 Treads 9 | . . . 9 . . . Leg 4 | . . . . . . 4 Wheel 6 | 2 1 . . 3 . . Hover . | . . . . . . . Flight 8 | . . . . . 6 2 Utility 27 | 1 2 1 5 5 6 7 Device 4 | . . . 1 . 1 2 Storage 4 | 1 1 1 1 . . . Processor 1 | . 1 . . . . . Hackware 3 | . . . . . 2 1 Protection 15 | . . . 3 5 3 4 Artifact . | . . . . . . . Weapon 28 | 2 4 . 10 4 3 5 Energy Gun 16 | 1 2 . 7 4 2 . Energy Cannon . | . . . . . . . Ballistic Gun 7 | 1 1 . 3 . . 2 Ballistic Cannon 2 | . . . . . . 2 Launcher 1 | . 1 . . . . . Special Weapon . | . . . . . . . Impact Weapon . | . . . . . . . Slashing Weapon 1 | . . . . . . 1 Piercing Weapon . | . . . . . . . Special Melee Weapon 1 | . . . . . 1 . Unidentified Prototypes 7 | . . . 3 3 . 1 Parts Lost 44 | . 5 . 8 . 13 18 Power 8 | . 2 . 1 . 2 3 Propulsion 12 | . 1 . 2 . 3 6 Utility 11 | . . . . . 5 6 Weapon 13 | . 2 . 5 . 3 3 Highest Loss Streak 7 | . 3 . 3 . 6 7 Average Slot Usage (%) 91 | . 94 100 95 90 84 81 Engine 5 | . 13 14 3 2 6 3 Core 4 | . . . 7 6 2 3 Treads 14 | . . . 29 16 . . Leg 1 | . . . . . . 14 Wheel 9 | . 28 28 2 10 12 . Flight 2 | . . . . . 10 9 Storage 9 | . 14 14 10 9 6 . Processor 8 | . 9 14 11 9 6 . Hackware 2 | . . . . . 2 20 Protection 10 | . . . 9 18 19 12 Energy Gun 9 | . 9 14 12 9 8 2 Ballistic Gun 8 | . 14 14 8 9 6 . Naked Turns . | . . . . . . . Heaviest Build 72 | 10 23 38 49 72 72 26 Greatest Support 69 | 32 32 26 69 69 48 54 Greatest Overweight (x) 17 | . . 1 2 3 17 1 Average Overweight (x) . | . . . . . 1 . Largest Inventory Capacity 12 | 6 12 12 12 12 12 4 Average Capacity 10 | 5 8 11 11 12 9 4 Most Carried 12 | 2 4 4 12 12 12 4 Average Carried 7 | 1 2 3 9 11 8 1 Final Capacity 12 | 6 10 12 12 12 4 4 Final Carried 12 | 2 3 4 12 12 2 4 Class Distribution -------------------- 73% | Mutant 16% | Scavenger-Mutant 9% | Hacker-Mutant Dominant Class ---------------- Mutant | -10/Materials Mutant | -10/Mines Mutant | -9/Materials Mutant | -8/Materials Mutant | -8/Garrison Hacker-Mutant | -8/Materials Resources | -11 -10 -10 -9 -8 -8 -8 ----------- Run | Scr Mat Min Mat Mat Gar Mat Matter Collected 1519 | 137 167 . 579 203 235 198 Remotely . | . . . . . . . Salvage Created 3393 | . 237 . 1918 533 442 263 Parts 222 | . 29 . 116 25 33 19 Haulers Intercepted 2 | . . . 1 1 . . Recyclers Shooed 4 | . . . 4 . . . Parts Field Recycled . | . . . . . . . Retrieved Matter . | . . . . . . . Parts Self-Destructed . | . . . . . . . Prevented . | . . . . . . . Kills | -11 -10 -10 -9 -8 -8 -8 ------- Run | Scr Mat Min Mat Mat Gar Mat Combat Hostiles Destroyed 83 | . 14 . 32 7 21 9 Melee 7 | . . . . . . 7 Guns 62 | . 6 . 32 6 18 . Cannons 2 | . . . . . . 2 AOE 12 | . 8 . . 1 3 . Classes Destroyed 10 | . 3 . 7 . . . Worker 1 | . . . 1 . . . Builder 3 | . . . 3 . . . Hauler 2 | . . . 1 1 . . Recycler 7 | . . . 5 1 . 1 Operator 1 | . . . 1 . . . Watcher 6 | . 3 . 3 . . . Swarmer 37 | . 9 . 4 . 18 6 Grunt 32 | . 5 . 19 3 3 2 Duelist 1 | . . . 1 . . . Sentry 13 | . . . 8 4 . 1 Best Kill Streak 11 | . 6 . 11 2 9 3 Combat Bots Only 9 | . 4 . 9 2 9 3 Max Kills in Single Turn 3 | . 2 . 3 2 2 1 Gunslinging 1 | . . . . . 1 . Exploded 2 | . 2 . . 1 1 . Melee 1 | . . . . . . 1 Uniques/NPCs Destroyed . | . . . . . . . Combat | -11 -10 -10 -9 -8 -8 -8 -------- Run | Scr Mat Min Mat Mat Gar Mat Damage Taken 5882 | . 541 . 1252 361 1761 1967 Core 879 | . 86 . 228 14 229 322 Absorbed by Shields 61 | . . . 61 . . . Core Remaining (%) 69 | 100 . 65 43 . . . Volleys Fired 242 | . 29 . 114 22 44 33 Largest 2 | . 2 . 2 2 2 1 Hottest 101 | . 70 . 101 73 73 65 Shots Fired 403 | . 55 . 192 44 79 33 Gun 370 | . 40 . 192 44 79 15 Cannon 18 | . . . . . . 18 Launcher 15 | . 15 . . . . . Special . | . . . . . . . Kinetic 182 | . 27 . 79 22 36 18 Thermal 87 | . 13 . 54 . 5 15 Explosive 15 | . 15 . . . . . Electromagnetic 119 | . . . 59 22 38 . Robot Hit Streak 33 | . 6 . 25 33 5 9 Robot Miss Streak 8 | . 3 . 4 3 8 2 Penetration Max . | . . . . . . . Secondary Targets 8 | . . . . 1 7 . Max Gunslinging Chain 1 | . . . . 1 1 . Shots Hit Robots 308 | . 33 . 147 37 45 46 Core Hits 173 | . 27 . 84 21 26 15 Critical Hits 4 | . . . 2 2 . . Critical Kills 1 | . . . 1 . . . Critical Parts Destroyed 3 | . . . 1 2 . . Melee Attacks 36 | . . . . . . 36 Impact . | . . . . . . . Slashing 35 | . . . . . . 35 Piercing . | . . . . . . . Sneak Attacks . | . . . . . . . Combat Hostiles . | . . . . . . . Follow-up Attacks . | . . . . . . . Damage Inflicted 5919 | . 1023 . 2502 726 749 919 Guns 3523 | . 226 . 1970 552 575 200 Cannons 319 | . . . . . . 319 Explosions 1660 | . 790 . 532 174 164 . Melee 377 | . . . . . . 377 Ramming 40 | . 7 . . . 10 23 Kinetic 1338 | . 125 . 539 182 173 319 Thermal 1499 | . 101 . 799 174 225 200 Explosive 1080 | . 790 . 290 . . . Electromagnetic 1585 | . . . 874 370 341 . Impact . | . . . . . . . Slashing 377 | . . . . . . 377 Piercing . | . . . . . . . Highest Corruption 9 | . 1 1 . . 9 9 Average Corruption 6 | . 1 1 . . 9 9 Corruption Purged . | . . . . . . . Effects 32 | . . 1 . . 8 23 Message Errors 7 | . . 1 . . 2 4 Matter Fused 10 | . . . . . 3 7 Heat Flow Errors 4 | . . . . . 1 3 Energy Discharges 2 | . . . . . 1 1 Parts Rejected 1 | . . . . . . 1 Data Loss (minor) 1 | . . . . . . 1 Data Loss (major) 1 | . . . . . 1 . Targeting Errors 6 | . . . . . . 6 Overload Shots . | . . . . . . . Overflow Damage 106 | . 58 . 32 . 9 7 Projectiles 4 | . . . . . . 4 Explosions 99 | . 58 . 32 . 9 . Melee 3 | . . . . . . 3 Knockbacks 5 | . . . . . . 5 Impact . | . . . . . . . Kinetic 5 | . . . . . . 5 Secondary . | . . . . . . . Self-Inflicted Damage 408 | . 189 . 55 93 66 5 Shots 13 | . 7 . 2 2 2 . Rammed 15 | . 1 . 1 . 1 12 Targets Rammed 20 | . 1 . 1 . 1 17 Kicked 5 | . . . . . . 5 Crushed . | . . . . . . . Highest Temperature 423 | . 86 . 265 184 323 423 Average Temperature 92 | . 26 . 84 48 96 172 Received Heat Transfer 1566 | . 102 . 438 126 216 684 Effects 8 | . . . . . . 8 Shutdowns 2 | . . . . . . 2 Energy Bleed 1 | . . . . . . 1 Interference 1 | . . . . . . 1 Matter Decay 1 | . . . . . . 1 Damage (major) 3 | . . . . . . 3 Siege Activations . | . . . . . . . Robots Corrupted . | . . . . . . . Combat Hostiles . | . . . . . . . Parts Fried 3 | . . . 3 . . . Impact Corruptions . | . . . . . . . Robots Melted . | . . . . . . . Combat Hostiles . | . . . . . . . Parts Melted 2 | . . . 1 . 1 . Heat Transferred 2968 | . 296 . 1793 100 298 481 Parts Sabotaged . | . . . . . . . Parts Stolen . | . . . . . . . Parts Stripped . | . . . . . . . Power Chain Reactions 8 | . . . 3 2 3 . Missiles Intercepted . | . . . . . . . Alert | -11 -10 -10 -9 -8 -8 -8 ------- Run | Scr Mat Min Mat Mat Gar Mat Peak Influence 719 | . 376 79 467 371 719 446 Initial 335 | . . 79 30 170 179 335 Average 291 | . 204 79 285 231 483 336 Maximum Alert Level 3 | . 1 . 2 1 3 2 Low Security (%) 28 | 100 30 100 25 43 9 16 Level 1 47 | . 69 . 55 56 7 54 Level 2 23 | . . . 18 . 81 28 Level 3 . | . . . . . . . Level 4 . | . . . . . . . Level 5 . | . . . . . . . High Security . | . . . . . . . Max Security . | . . . . . . . Squads Dispatched 9 | . 3 . 4 1 . 1 Investigation 3 | . 1 . 1 1 . . Extermination . | . . . . . . . Reinforcement 6 | . 2 . 3 . . 1 Assault . | . . . . . . . Garrison . | . . . . . . . Intercept . | . . . . . . . Construction Impeded 1 | . . . 1 . . . Haulers Reinforced . | . . . . . . . Stealth | -11 -10 -10 -9 -8 -8 -8 --------- Run | Scr Mat Min Mat Mat Gar Mat Distress Signals 4 | . . . 3 1 . . Communications Jammed . | . . . . . . . Distress Signals . | . . . . . . . Times Spotted 126 | . 19 . 47 13 26 21 Peak Tracking Total 11 | . 5 . 4 4 11 6 Tactical Retreats 10 | . 1 . 1 1 2 5 Traps | -11 -10 -10 -9 -8 -8 -8 ------- Run | Scr Mat Min Mat Mat Gar Mat Traps Triggered 9 | . 2 . 1 1 5 . Indirectly . | . . . . . . . Trap Hack Attempts 2 | . . . . . 2 . Triggered . | . . . . . . . Disarmed . | . . . . . . . Reprogrammed . | . . . . . . . Reused . | . . . . . . . Traps Extracted . | . . . . . . . Installed . | . . . . . . . Triggered . | . . . . . . . Machines | -11 -10 -10 -9 -8 -8 -8 ---------- Run | Scr Mat Min Mat Mat Gar Mat Machines Disabled 7 | . 4 . 2 1 . . Max in Single Turn 2 | . 2 . 1 1 . . Machines Sabotaged . | . . . . . . . Garrisons Compromised . | . . . . . . . Overloaded Fab Kills . | . . . . . . . Fab Network Shutdowns . | . . . . . . . Hacking | -11 -10 -10 -9 -8 -8 -8 --------- Run | Scr Mat Min Mat Mat Gar Mat Machines Accessed 7 | . . . 4 1 . 2 Terminals 5 | . . . 3 . . 2 Fabricators . | . . . . . . . Repair Stations 1 | . . . 1 . . . Recycling Units . | . . . . . . . Scanalyzers . | . . . . . . . Garrison Access 1 | . . . . 1 . . Total Hacks 15 | . . . 10 1 . 4 Successful 13 | . . . 9 1 . 3 Failed 2 | . . . 1 . . 1 Catastrophic . | . . . . . . . Database Lockouts . | . . . . . . . Manual . | . . . . . . . Terminals 10 | . . . 6 . . 4 Fabricators . | . . . . . . . Repair Stations 4 | . . . 4 . . . Recycling Units . | . . . . . . . Scanalyzers . | . . . . . . . Garrison Access 1 | . . . . 1 . . Terminal Hacks 8 | . . . 5 . . 3 Record 1 | . . . . . . 1 Branch Access Points 1 | . . . 1 . . . Alert Level 1 | . . . 1 . . . Unreport Threat 1 | . . . . . . 1 Dispatch Records 1 | . . . 1 . . . Surveillance Status 1 | . . . . . . 1 Recall Investigation 1 | . . . 1 . . . Hauler Manifests 1 | . . . 1 . . . Fabricator Hacks . | . . . . . . . Repair Station Hacks 4 | . . . 4 . . . Scan Component 2 | . . . 2 . . . Repair 2 | . . . 2 . . . Recycling Unit Hacks . | . . . . . . . Scanalyzer . | . . . . . . . Garrison Access Hacks 1 | . . . . 1 . . Unlock Access 1 | . . . . 1 . . Unauthorized Hacks . | . . . . . . . Terminals . | . . . . . . . Fabricators . | . . . . . . . Repair Stations . | . . . . . . . Recycling Units . | . . . . . . . Scanalyzers . | . . . . . . . Garrison Access . | . . . . . . . Data Cores Recovered . | . . . . . . . Used . | . . . . . . . Hacking Detections 4 | . . . 4 . . . Full Trace Events 1 | . . . 1 . . . Feedback Events . | . . . . . . . Feedback Blocked . | . . . . . . . Robot Schematics Acquired . | . . . . . . . Robots Built . | . . . . . . . Matter . | . . . . . . . Time . | . . . . . . . Total Robot Build Rating . | . . . . . . . Part Schematics Acquired . | . . . . . . . Parts Built . | . . . . . . . Matter . | . . . . . . . Time . | . . . . . . . Total Part Build Rating . | . . . . . . . Parts Repaired 2 | . . . 2 . . . Time 58 | . . . 58 . . . Parts Recycled . | . . . . . . . Recycled Matter . | . . . . . . . Retrieved Matter . | . . . . . . . Retrieved Components . | . . . . . . . Parts Scanalyzed . | . . . . . . . Part Schematics Acquired . | . . . . . . . Parts Damaged . | . . . . . . . Bothacking | -11 -10 -10 -9 -8 -8 -8 ------------ Run | Scr Mat Min Mat Mat Gar Mat Used RIF Installer 1 | . . . . . 1 . Robots Hacked 1 | . . . . . . 1 Non-combat . | . . . . . . . Combat 1 | . . . . . . 1 Robot Hacks Applied 1 | . . . . . . 1 parse_system 1 | . . . . . . 1 Relay Couplers Released . | . . . . . . . Robots Rewired . | . . . . . . . Allies Hacked . | . . . . . . . Hacks Repelled . | . . . . . . . Allies | -11 -10 -10 -9 -8 -8 -8 -------- Run | Scr Mat Min Mat Mat Gar Mat Total Allies . | . . . . . . . Largest Group . | . . . . . . . Highest-Rated Group . | . . . . . . . Highest-Rated Ally . | . . . . . . . Total Orders . | . . . . . . . Ally Attacks . | . . . . . . . Total Damage . | . . . . . . . Kills . | . . . . . . . Allies Corrupted . | . . . . . . . Allies Melted . | . . . . . . . Intel | -11 -10 -10 -9 -8 -8 -8 ------- Run | Scr Mat Min Mat Mat Gar Mat Robot Analysis Total . | . . . . . . . Derelict Logs Recovered 1 | . . 1 . . . . Drone Launches . | . . . . . . . Drone Recoveries . | . . . . . . . Exploration | -11 -10 -10 -9 -8 -8 -8 ------------- Run | Scr Mat Min Mat Mat Gar Mat Turns Passed 4744 | 66 683 163 2015 590 710 517 Spaces Moved 2758 | 59 627 161 939 300 314 358 Core 8 | 7 . . . . 1 . Treads 1010 | . . . 842 168 . . Legs 119 | . . . . . . 119 Wheels 1139 | 52 627 161 97 132 70 . Hover . | . . . . . . . Flight 482 | . . . . . 243 239 Fastest Speed 34 | 50 90 90 100 110 34 34 Average Speed 121 | 94 92 98 154 138 145 64 Slowest Speed 1170 | 100 100 100 200 160 1170 120 Overloaded Moves . | . . . . . . . Propulsion Burnouts . | . . . . . . . Robots Hopped 1 | . . . . . . 1 Cave-ins Triggered 1 | . . . . . 1 . Exploration Rate (%) 43 | 4 95 33 77 29 44 25 Regions Visited 6 Branch Regions 1 Pre-discovered Areas . | . . . . . . . Known Exits Taken 1 | . . . . 1 . . Unknown Exits Taken 4 | 1 1 1 1 . . . Scrap Searched . | . . . . . . . Spaces Dug . | . . . . . . . Terrain Destroyed 177 | . 121 . 34 12 10 . Melee . | . . . . . . . Projectile . | . . . . . . . AOE 177 | . 121 . 34 12 10 . Terrain Rammed . | . . . . . . . Walls Destroyed . | . . . . . . . Machines Disabled . | . . . . . . . Actions | -11 -10 -10 -9 -8 -8 -8 --------- Run | Scr Mat Min Mat Mat Gar Mat Total 3683 | 66 680 164 1321 435 485 532 Wait 388 | . 10 3 204 84 23 64 Move 2749 | 58 626 160 938 299 312 356 Hop 1 | . . . . . . 1 Pick Up 28 | 2 3 . 21 2 . . Fast Attach 61 | 6 4 . 15 10 9 17 Attach 17 | . 4 . 2 1 7 3 Detach 3 | . 1 . . . . 2 Swap 17 | . 1 1 10 3 2 . Drop 39 | . 1 . 16 14 5 3 Fire 242 | . 29 . 114 22 44 33 Melee 36 | . . . . . . 36 Ram 2 | . 1 . . . 1 . Kick 17 | . . . . . . 17 Crush 1 | . . . 1 . . . Escape Stasis 80 | . . . . . 80 . Rewire . | . . . . . . . Trap 2 | . . . . . 2 . Miscellaneous . | . . . . . . . Route ------- -11/Scrapyard -10/Materials (discovered 3 exits: *Mat x2 / [*Min]) -10/Mines (discovered 3 exits: *Mat x2 / Exi) -9/Materials (discovered 4 exits: *Mat x3 / *Min) -8/Materials -8/Garrison -8/Materials (discovered 1 exit: [*Fac]) History --------- Turn | Location | Event 2 | -11/Scrapyard | Discovered new exit (range 16) 67 | -11/Scrapyard | Entered Materials 158 | -10/Materials | Discovered new exit (range 16) 313 | -10/Materials | Build established: Mutant 346 | -10/Materials | Lost 3 parts (1p2w) 391 | -10/Materials | Discovered new exit (range 15) 507 | -10/Materials | Discovered new exit (range 15) 750 | -10/Materials | Entered Mines 817 | -10/Mines | Discovered new exit (range 8) 825 | -10/Mines | Discovered new exit (range 10) 842 | -10/Mines | Identified exit to Exiles 913 | -10/Mines | Entered Materials 913 | -9/Materials | Evolved 2 slots: Propulsion x1, Utility x1 1052 | -9/Materials | Lost 3 parts (3w) 1327 | -9/Materials | Discovered new exit (range 16) 1464 | -9/Materials | Build established: Scavenger-Mutant 1478 | -9/Materials | Discovered new exit (range 14) 1600 | -9/Materials | Core integrity fell below 50% 1636 | -9/Materials | Destroyed 9 combat bots 1848 | -9/Materials | Discovered new exit (range 16) 1862 | -9/Materials | Identified exit to Mines 2025 | -9/Materials | Build established: Mutant 2234 | -9/Materials | Repaired Hcp. Storage Unit 2341 | -9/Materials | Repaired Imp. Treads 2431 | -9/Materials | Discovered new exit (range 15) 2928 | -9/Materials | Entered another Materials area 2928 | -8/Materials | Evolved 2 slots: Utility x2 3517 | -8/Materials | Identified exit to Garrison 3518 | -8/Materials | Entered Garrison 3661 | -8/Garrison | Destroyed 9 combat bots 3954 | -8/Garrison | Triggered checkpoint 3967 | -8/Garrison | Triggered checkpoint 4001 | -8/Garrison | Destroyed 8 combat bots 4011 | -8/Garrison | Lost 5 parts (2n3u) 4044 | -8/Garrison | Crushed by falling debris 4075 | -8/Garrison | Lost 6 parts (2p1u3w) 4084 | -8/Garrison | Triggered checkpoint 4180 | -8/Garrison | Triggered checkpoint 4221 | -8/Garrison | Discovered new exit (range 9) 4226 | -8/Garrison | Installed Relay Interface Framework 4228 | -8/Garrison | Entered Materials 4398 | -8/Materials | Core integrity fell below 50% 4453 | -8/Materials | Lost 7 parts (1p3n2u1w) 4494 | -8/Materials | Core integrity fell below 20% 4540 | -8/Materials | Build established: Hacker-Mutant 4630 | -8/Materials | Discovered new exit (range 11) 4745 | -8/Materials | Destroyed by G-47 Trooper with Particle Gun Last Messages --------------- 04678_ S-10 Pest unfolds itself. 04679_ Imp. Medium Armor Plating destroyed. 04685_ S-10 Pest destroyed. 04688_ Acquired 20 matter. 04693_ S-10 Pest destroyed. 04698_ C-30 ARC bursts open, deploying its payload. 04698_ G-47 Trooper unfolds itself. 04699_ S-10 Pest Lgt. Assault Rifle ripped off. 04706_ OYNW1VI|G 3X 6ZO>QEJNDK%OVKEEX13Z2ALR2O 04710_ S-10 Pest destroyed. 04713_ Destroyed Flight Unit. 04715_ Hacking Suite destroyed. 04719_ Lgt. Ion Engine destroyed. 04724_ Imp. Medium Armor Plating destroyed. 04726_ Acquired 19 matter. 04729_ System corrupted: Energy discharge (-38). 04730_ Imp. Carbon-fiber Leg destroyed. 04733_ S-10 Pest destroyed. 04734_ Acquired 12 matter. 04736_ System corrupted: Mining Claw targeting data glitched. Map ----- +----------------------------------------------------+ | | | | | | | | | | | | | | | | | | | | | ?????????????###########?????????????????????????? | | ?????????????# ! #?????????????????????????? | | ?????????????# #?????????????????????????? | | ?????????????# #?????????????????????????? | | ?????????????# #?????????????????????????? | | ???????###########+#####?????????????????????????? | | ???????# #??????????????????????????? | | ???????# < #??????????????????????????? | | ???????# ########???????????????????? | | ???????############ ## /#???????????????????? | | ????????########### ## ! #???????????????????? | | ????????# # ## =###?????????????????? | | ????????# ! + ## """%+*??????????????????? | | ????????# "T" # ## """*#???????????????????? | | ????????# """ # ##g"""*#???????????????????? | | ?????############## ## @[ =#???????????????????? | | ?????# """ """ # ###g####### ???????? | | ?????# """ """ # % ???????? | | ?????# """ """ + T ???????? | | ?????# # ???????? | | ?????# ! # ###+###### ####????????? | | ?????# ## ##= #??? "%#???????????? | | ###### ## ## #?????"#???????????? | | ##+############ ## #??????????????????? | | ## ############ ## "" !#??????????????????? | | # ## "" =#??????????????????? | | """ + + = #??????????????????? | | """ # #########??????????????????? | | """ ## ########## ####???????????????????????? | | ## #????????# #???????????????????????? | | ## #????????# !!#???????????????????????? | | ###### #????????# ! !!#???????????????????????? | | ?????# #????????########???????????????????????? | | ?????# #???????????????????????????????????????? | | ?????# #???????????????????????????????????????? | | ?????# #???????????????????????????????????????? | | ?????# #???????????????????????????????????????? | | ?????# #???????????????????????????????????????? | | ?????# #???????????????????????????????????????? | | ?????# #???????????????????????????????????????? | +----------------------------------------------------+ Best States ------------- Heat Dissipation 45 Energy Generation 18 Energy Capacity 310 Matter Stores 300 Matter Capacity 300 Sight Range 16 Terrain Scan Density 10 Additional Mass Support 9 Armor Coverage 675 Weapon Shielding 66 Evasion (%) 63 Targeting Accuracy 5 Recoil Reduction 3 Offensive Hacking 30 Item Schematics ----------------- None Robot Schematics ------------------ None Fabricated ------------ Nothing Alien Tech Used ----------------- None Achievements -------------- None Challenges ------------ None Game ------ Seed HeatNeutralizingHumpback Manual? 0 Play Time 00:39:05 Cumulative 21.6 hours Start 2021.12.21 @ 20:11:54 End 2021.12.21 @ 20:47:35 Sessions 1 Manual Loads 0 Difficulty Rogue Special Mode None Game No. 39 Rogue 39 Adventurer 0 Explorer 0 Win Type - Total 0 Types 0/0/0/0/0/0/0/0/0 Lore% 17 Gallery% 29 Achievement% 20 Wizard Run 0 Options --------- ASCII 0 Keyboard 0 Movement Numpad Keybinds 0 Fullscreen 2 Font 24/Smallcaps Map View 76x50 Tactical HUD 1 Map Filters NONE Filters NONE Steam 1 RUN: 7c53572b-dc5c-489c-b0c4-25e631563f69